{"text_format":"1","workbook":"xlsx","n_sheets":1,"sheets":["scores"],"not_rendered":{"charts":0,"images":0,"macros":1,"external_links":0,"defined_names":2,"comments":0,"pivot_tables":0},"unopened":[],"bounds":{"document_bytes":16777216,"sheet_cells":100000,"rows_first":2000,"rows_last":500,"rows_between":2000,"halvings":0,"cell_chars":16384,"cell_head_chars":4096},"cells_cut":0,"cells_raw":0,"read":"whole","date_system":"1900"}

{"sheet":"scores","index":0,"n_rows":307,"n_cols":41,"rows_kept":307,"cut":false,"hidden":false,"merged":[[0,0,0,22],[1,0,1,22]]}
["2017 Waupaca Invite"]
["Waupaca CC, 5338 yds, par 72, 71.0/129"]
[null,null,null,null,null,null,null,"Tuesday August 15, 2017"]
[]
["TEAMS"]
["Fox Valley Lutheran",388]
["Notre Dame",412]
["Waupaca",414]
[]
["INDIVIDUALS"]
["Erika Priebe - FVL",80]
["Markie Ash - Waupaca",83]
["Shelby Hiltgen - App West",93]
["Addie Slominsky - FVL",94]
["Josie Sullivan - Notre Dame",99]
[null,null,{"$f":"IF(C17=\"\",\"Warning:  Make sure you enter the par for each hole below.\",\"\")","v":""}]
[null,"Par",5,5,3,4,4,4,3,4,4,{"$f":"SUM(C17:K17)","v":36},5,5,3,4,4,4,3,4,4,{"$f":"SUM(M17:U17)","v":36},{"$f":"L17+V17","v":72}]
["Appleton West","Hole",1,2,3,4,5,6,7,8,9,"out",10,11,12,13,14,15,16,17,18,"in","Total"]
["Shelby Hiltgen","AW",null,null,null,null,null,null,null,null,null,null,null,null,null,null,null,null,null,null,null,null,93]
["Sara Schrader",{"$f":"IF(B19=\"\",\"\",B19)","v":"AW"},null,null,null,null,null,null,null,null,null,null,null,null,null,null,null,null,null,null,null,null,125,"Total"]
["Michaela Rudolf",{"$f":"B20","v":"AW"},null,null,null,null,null,null,null,null,null,null,null,null,null,null,null,null,null,null,null,null,120,{"$f":"IF(COUNT(W19:W23)<=3,\"DQ\",IF(COUNT(W19:W23)=4,SUM(W19:W23),SUM(W19:W23)-MAX(W19:W23)))","v":451}]
["Dylan Roster",{"$f":"B21","v":"AW"},null,null,null,null,null,null,null,null,null,null,null,null,null,null,null,null,null,null,null,null,116]
["Kaylee Lauterbach",{"$f":"B22","v":"AW"},null,null,null,null,null,null,null,null,null,null,null,null,null,null,null,null,null,null,null,null,122]
[]
["Fox Valley Luth","Hole",1,2,3,4,5,6,7,8,9,"out",10,11,12,13,14,15,16,17,18,"in","Total"]
["Erika Priebe","FVL",null,null,null,null,null,null,null,null,null,null,null,null,null,null,null,null,null,null,null,null,80]
["Addie Slominsky",{"$f":"IF(B26=\"\",\"\",B26)","v":"FVL"},null,null,null,null,null,null,null,null,null,null,null,null,null,null,null,null,null,null,null,null,94,"Total"]
["Elizabeth Santos",{"$f":"B27","v":"FVL"},null,null,null,null,null,null,null,null,null,null,null,null,null,null,null,null,null,null,null,null,104,{"$f":"IF(COUNT(W26:W30)<=3,\"DQ\",IF(COUNT(W26:W30)=4,SUM(W26:W30),SUM(W26:W30)-MAX(W26:W30)))","v":388}]
["Emma Santos",{"$f":"B28","v":"FVL"},null,null,null,null,null,null,null,null,null,null,null,null,null,null,null,null,null,null,null,null,110]
["Alaina Thern",{"$f":"B29","v":"FVL"},null,null,null,null,null,null,null,null,null,null,null,null,null,null,null,null,null,null,null,null,129]
[]
["Notre Dame","Hole",1,2,3,4,5,6,7,8,9,"out",10,11,12,13,14,15,16,17,18,"in","Total"]
["Olivia Blumb","ND",null,null,null,null,null,null,null,null,null,null,null,null,null,null,null,null,null,null,null,null,108]
["Ellese Martin",{"$f":"IF(B33=\"\",\"\",B33)","v":"ND"},null,null,null,null,null,null,null,null,null,null,null,null,null,null,null,null,null,null,null,null,108,"Total"]
["Liz Scott",{"$f":"B34","v":"ND"},null,null,null,null,null,null,null,null,null,null,null,null,null,null,null,null,null,null,null,null,102,{"$f":"IF(COUNT(W33:W37)<=3,\"DQ\",IF(COUNT(W33:W37)=4,SUM(W33:W37),SUM(W33:W37)-MAX(W33:W37)))","v":412}]
["Kate Sullivan",{"$f":"B35","v":"ND"},null,null,null,null,null,null,null,null,null,null,null,null,null,null,null,null,null,null,null,null,103]
["Josie Sullivan",{"$f":"B36","v":"ND"},null,null,null,null,null,null,null,null,null,null,null,null,null,null,null,null,null,null,null,null,99]
["Team Bestball",{"$f":"B37","v":"ND"},{"$f":"MIN(C33:C37)","v":0},0,0,0,0,0,0,0,0,{"$f":"SUM(C38:K38)","v":0},{"$f":"MIN(M33:M37)","v":0},0,0,0,0,0,0,0,0,{"$f":"SUM(M38:U38)","v":0},{"$f":"L38+V38","v":0}]
[]
["Waupaca","Hole",1,2,3,4,5,6,7,8,9,"out",10,11,12,13,14,15,16,17,18,"in","Total"]
["Markie Ash","WAA",null,null,null,null,null,null,null,null,null,null,null,null,null,null,null,null,null,null,null,null,83]
["Alana Radley",{"$f":"IF(B41=\"\",\"\",B41)","v":"WAA"},null,null,null,null,null,null,null,null,null,null,null,null,null,null,null,null,null,null,null,null,114,"Total"]
["Cadie Ash",{"$f":"B42","v":"WAA"},null,null,null,null,null,null,null,null,null,null,null,null,null,null,null,null,null,null,null,null,105,{"$f":"IF(COUNT(W41:W45)<=3,\"DQ\",IF(COUNT(W41:W45)=4,SUM(W41:W45),SUM(W41:W45)-MAX(W41:W45)))","v":414}]
["Lylli Sandral",{"$f":"B43","v":"WAA"},null,null,null,null,null,null,null,null,null,null,null,null,null,null,null,null,null,null,null,null,118]
["Sydney Behm",{"$f":"B44","v":"WAA"},null,null,null,null,null,null,null,null,null,null,null,null,null,null,null,null,null,null,null,null,112]
[]
["Wrightstown","Hole",1,2,3,4,5,6,7,8,9,"out",10,11,12,13,14,15,16,17,18,"in","Total"]
["Grace Nenecek","WRI",null,null,null,null,null,null,null,null,null,null,null,null,null,null,null,null,null,null,null,null,101]
["Carley Ott",{"$f":"IF(B48=\"\",\"\",B48)","v":"WRI"},null,null,null,null,null,null,null,null,null,null,null,null,null,null,null,null,null,null,null,null,142,"Total"]
["Camyrn Burke",{"$f":"B49","v":"WRI"},null,null,null,null,null,null,null,null,null,null,null,null,null,null,null,null,null,null,null,null,131,{"$f":"IF(COUNT(W48:W52)<=3,\"DQ\",IF(COUNT(W48:W52)=4,SUM(W48:W52),SUM(W48:W52)-MAX(W48:W52)))","v":"DQ"}]
[" ",{"$f":"B50","v":"WRI"},null,null,null,null,null,null,null,null,null,null,null,null,null,null,null,null,null,null,null,null,"inc"]
[" ",{"$f":"B51","v":"WRI"},null,null,null,null,null,null,null,null,null,null,null,null,null,null,null,null,null,null,null,null,"inc"]
[]
["Waupaca JV","Hole",1,2,3,4,5,6,7,8,9,"out",10,11,12,13,14,15,16,17,18,"in","Total"]
["Alyssa Townsend"," ",null,null,null,null,null,null,null,null,null,null,null,null,null,null,null,null,null,null,null,null,134]
["Caitlin Kelly",{"$f":"IF(B55=\"\",\"\",B55)","v":" "},null,null,null,null,null,null,null,null,null,null,null,null,null,null,null,null,null,null,null,null,145,"Total"]
["Rainy Van Gunten",{"$f":"B56","v":" "},null,null,null,null,null,null,null,null,null,null,null,null,null,null,null,null,null,null,null,null,120,{"$f":"IF(COUNT(W55:W59)<=3,\"DQ\",IF(COUNT(W55:W59)=4,SUM(W55:W59),SUM(W55:W59)-MAX(W55:W59)))","v":529}]
["Alyssa Engebretson",{"$f":"B57","v":" "},null,null,null,null,null,null,null,null,null,null,null,null,null,null,null,null,null,null,null,null,130]
["Emma Ronaldson",{"$f":"B58","v":" "},null,null,null,null,null,null,null,null,null,null,null,null,null,null,null,null,null,null,null,null,155]
[]
["Others","Hole",1,2,3,4,5,6,7,8,9,"out",10,11,12,13,14,15,16,17,18,"in","Total"]
["Helena Parmar - ND"," ",null,null,null,null,null,null,null,null,null,{"$f":"SUM(C62:K62)","v":0},null,null,null,null,null,null,null,null,null,{"$f":"IF(U62>\"a\",U62,SUM(M62:U62))","v":0},104]
["Kayla Lorenz - AW",{"$f":"IF(B62=\"\",\"\",B62)","v":" "},null,null,null,null,null,null,null,null,null,0,null,null,null,null,null,null,null,null,null,{"$f":"IF(U63>\"a\",U63,SUM(M63:U63))","v":0},124,"Total"]
[" ",{"$f":"B63","v":" "},null,null,null,null,null,null,null,null,null,null,null,null,null,null,null,null,null,null,null,null,null,{"$f":"IF(COUNT(W62:W66)<=3,\"DQ\",IF(COUNT(W62:W66)=4,SUM(W62:W66),SUM(W62:W66)-MAX(W62:W66)))","v":"DQ"}]
[" ",{"$f":"B64","v":" "}]
[" ",{"$f":"B65","v":" "}]
[]
[]
[]
[]
[]
[]
[]
[]
[]
[]
[]
[]
[]
[]
[]
[]
[]
[]
[]
[]
[]
[]
[]
[]
[]
[]
[]
[]
[]
[]
[]
[]
[]
[]
[]
[]
[]
[]
[]
[]
[]
[]
[]
[]
[]
[]
[]
[]
[]
[]
[]
[]
[]
[]
[]
[]
[]
[]
[]
[]
[]
[]
[]
[]
[]
[]
[]
[]
[]
[]
[]
[]
[]
[]
[]
[]
[]
[]
[]
[]
[]
[]
[]
[]
[]
[]
[]
[]
[]
[]
[]
[]
[]
[]
[]
[]
[]
[]
[]
[]
[]
[]
[]
[]
[]
[]
[]
[]
[]
[]
[]
[]
[]
[]
[]
[]
[]
[]
[]
[]
[]
[]
[]
[]
[]
[]
[]
[]
[]
[]
[]
[]
[]
[]
[]
[]
[]
[]
[]
[]
[]
[]
[]
[]
[]
[]
[]
[]
[]
[]
[]
[]
[]
[]
[]
[]
[]
[]
[]
[]
[]
[]
[]
[]
[]
[]
[]
[]
[]
[]
[]
[]
[]
[]
[]
[]
[]
[]
[]
[]
[]
[]
[]
[]
[]
[]
[]
[]
[]
[]
[]
[]
[]
[]
[]
[]
[]
[]
[]
[]
[]
[]
[]
[]
[]
[]
[]
[]
[]
[]
[]
[]
[]
[]
[]
[]
[]
[]
[]
[]
[]
[]
[]
[]
[]
[]
[]
[]
[]
[]
[]
[]
[]
[]
[]
[]
[]
[]
[]
[]
["Bob Mellinger",null,null,null,null,null,null,null,null,null,null,null,null,null,null,null,null,null,null,null,null,null,null,null,null,null,null,null,null,null,null,null,null,null,null,null,null,null,null,null,"Bob Melliinger"]